[Event "Live Chess"]
[Site "Chess.com"]
[Date "2024.06.02"]
[Round "-"]
[White "Ferrarifan27"]
[Black "upoe610"]
[Result "1-0"]
[WhiteElo "2160"]
[BlackElo "2125"]
[TimeControl "300"]
[EndTime "5:35:43 PDT"]
[Termination "Ferrarifan27 won by resignation"]

1. e4 {[%clk 0:04:57.7]} 1... e5 {[%clk 0:04:57.1]} 2. Nf3 {[%clk 0:04:45.5]}
2... Nc6 {[%clk 0:04:53]} 3. Bb5 {[%clk 0:04:41]} 3... a6 {[%clk 0:04:51.8]} 4.
Ba4 {[%clk 0:04:38.8]} 4... Nf6 {[%clk 0:04:50.6]} 5. O-O {[%clk 0:04:27.5]}
5... Be7 {[%clk 0:04:48.5]} 6. Re1 {[%clk 0:04:24.6]} 6... b5 {[%clk 0:04:46.8]}
7. Bb3 {[%clk 0:04:22.9]} 7... O-O {[%clk 0:04:46.4]} 8. c3 {[%clk 0:04:20.4]}
8... d5 {[%clk 0:04:45.1]} 9. exd5 {[%clk 0:04:20.3]} 9... Nxd5 {[%clk
0:04:44.5]} 10. Nxe5 {[%clk 0:04:15.5]} 10... Nxe5 {[%clk 0:04:44.4]} 11. Rxe5
{[%clk 0:04:15]} 11... c6 {[%clk 0:04:43.8]} 12. d3 {[%clk 0:04:13.4]} 12... Bd6
{[%clk 0:04:42.1]} 13. Re1 {[%clk 0:04:04.6]} 13... Bf5 {[%clk 0:04:40.4]} 14.
Qf3 {[%clk 0:03:55.2]} 14... Re8 {[%clk 0:04:38.8]} 15. Rxe8+ {[%clk 0:03:30]}
15... Qxe8 {[%clk 0:04:38.7]} 16. Bd2 {[%clk 0:03:27.9]} 16... Qe6 {[%clk
0:04:32.1]} 17. Na3 {[%clk 0:03:18]} 17... Re8 {[%clk 0:04:27.8]} 18. Nc2 {[%clk
0:03:12.4]} 18... Bg4 {[%clk 0:04:23.6]} 19. Qe4 {[%clk 0:02:54.2]} 19... Qxe4
{[%clk 0:04:17.2]} 20. dxe4 {[%clk 0:02:52.5]} 20... Nf6 {[%clk 0:04:12.8]} 21.
f3 {[%clk 0:02:43.9]} 21... Bc5+ {[%clk 0:04:11.4]} 22. Be3 {[%clk 0:02:42.7]}
22... Bxe3+ {[%clk 0:04:09.1]} 23. Nxe3 {[%clk 0:02:42]} 23... Be6 {[%clk
0:04:09]} 24. Bxe6 {[%clk 0:02:39.1]} 24... Rxe6 {[%clk 0:04:07.8]} 25. Rd1
{[%clk 0:02:38.5]} 25... Kf8 {[%clk 0:04:06.2]} 26. Nf5 {[%clk 0:02:36.9]} 26...
g6 {[%clk 0:04:03.3]} 27. Rd8+ {[%clk 0:02:34.3]} 27... Ne8 {[%clk 0:04:02.4]}
28. Nd4 {[%clk 0:02:30.7]} 28... Re5 {[%clk 0:03:49.7]} 29. Nxc6 {[%clk
0:02:28.6]} 29... Rc5 {[%clk 0:03:48.4]} 30. Nb8 {[%clk 0:02:24]} 30... a5
{[%clk 0:03:45.1]} 31. Nd7+ {[%clk 0:02:22.7]} 31... Ke7 {[%clk 0:03:44.1]} 32.
Nxc5 {[%clk 0:02:21.5]} 32... Kxd8 {[%clk 0:03:43.3]} 33. Nb7+ {[%clk
0:02:20.8]} 33... Kc7 {[%clk 0:03:42.8]} 34. Nxa5 {[%clk 0:02:20.4]} 34... Kb6
{[%clk 0:03:40.4]} 35. Nb3 {[%clk 0:02:19.5]} 35... Nd6 {[%clk 0:03:39.4]} 36.
Nd2 {[%clk 0:02:15.7]} 36... Kc5 {[%clk 0:03:38]} 37. Kf2 {[%clk 0:02:14.5]}
37... Nc8 {[%clk 0:03:33.6]} 38. Ke3 {[%clk 0:02:13.3]} 38... Nb6 {[%clk
0:03:32.8]} 39. b3 {[%clk 0:02:11.5]} 39... b4 {[%clk 0:03:28.3]} 40. cxb4+
{[%clk 0:02:09.3]} 40... Kxb4 {[%clk 0:03:27.6]} 41. Nc4 {[%clk 0:02:05.6]}
41... Nd7 {[%clk 0:03:27.5]} 42. Kd4 {[%clk 0:01:59.9]} 42... Kb5 {[%clk
0:03:24.1]} 43. Nd6+ {[%clk 0:01:58.6]} 1-0

[Event "Live Chess"]
[Site "Chess.com"]
[Date "2024.06.02"]
[Round "-"]
[White "davigator"]
[Black "RuslanChessN"]
[Result "0-1"]
[WhiteElo "2386"]
[BlackElo "1947"]
[TimeControl "300"]
[EndTime "5:35:56 PDT"]
[Termination "RuslanChessN won by resignation"]

1. e4 {[%clk 0:04:57.5]} 1... c6 {[%clk 0:04:46.3]} 2. d4 {[%clk 0:04:55.1]}
2... d5 {[%clk 0:04:45]} 3. e5 {[%clk 0:04:54.3]} 3... Bf5 {[%clk 0:04:42.6]} 4.
h4 {[%clk 0:04:53.6]} 4... h5 {[%clk 0:04:38.3]} 5. c4 {[%clk 0:04:52.6]} 5...
e6 {[%clk 0:04:36.8]} 6. Nc3 {[%clk 0:04:51.5]} 6... Bb4 {[%clk 0:04:32]} 7. Qb3
{[%clk 0:04:39.8]} 7... Bxc3+ {[%clk 0:04:28]} 8. bxc3 {[%clk 0:04:36.8]} 8...
Qb6 {[%clk 0:04:27.3]} 9. c5 {[%clk 0:04:25.6]} 9... Qxb3 {[%clk 0:04:24.7]} 10.
axb3 {[%clk 0:04:25.3]} 10... Nd7 {[%clk 0:04:23.4]} 11. b4 {[%clk 0:04:23.6]}
11... f6 {[%clk 0:04:18.2]} 12. Bf4 {[%clk 0:04:20.3]} 12... fxe5 {[%clk
0:04:15.6]} 13. dxe5 {[%clk 0:04:18.6]} 13... Ne7 {[%clk 0:04:13.5]} 14. Nf3
{[%clk 0:04:17.1]} 14... Be4 {[%clk 0:04:08.6]} 15. Nd4 {[%clk 0:04:15]} 15...
Kf7 {[%clk 0:04:04.3]} 16. f3 {[%clk 0:04:14]} 16... Bh7 {[%clk 0:03:58.6]} 17.
Kd2 {[%clk 0:04:09.1]} 17... Ng6 {[%clk 0:03:57.2]} 18. Bg3 {[%clk 0:04:06.8]}
18... Ngxe5 {[%clk 0:03:54.5]} 19. Re1 {[%clk 0:04:06.1]} 19... Kf6 {[%clk
0:03:43.8]} 20. Nxe6 {[%clk 0:04:05.2]} 20... Kxe6 {[%clk 0:03:40.1]} 21. f4
{[%clk 0:04:04.7]} 21... Rhf8 {[%clk 0:03:13.6]} 22. fxe5 {[%clk 0:04:03.4]}
22... a5 {[%clk 0:03:07.4]} 23. Ra1 {[%clk 0:03:50.2]} 23... axb4 {[%clk
0:02:56.6]} 24. Rxa8 {[%clk 0:03:47.3]} 24... Rxa8 {[%clk 0:02:56.5]} 25. cxb4
{[%clk 0:03:46]} 25... Nxe5 {[%clk 0:02:54.3]} 26. Be2 {[%clk 0:03:43.5]} 26...
Ra2+ {[%clk 0:02:48.8]} 27. Ke3 {[%clk 0:03:40.4]} 27... Ra3+ {[%clk 0:02:42.3]}
28. Kf2 {[%clk 0:03:37.9]} 28... Bd3 {[%clk 0:02:32.8]} 29. Bxh5 {[%clk
0:03:36.3]} 29... g6 {[%clk 0:02:25.7]} 30. Re1 {[%clk 0:03:31.4]} 30... Be4
{[%clk 0:02:13.8]} 31. Bf3 {[%clk 0:03:28.8]} 31... Nd3+ {[%clk 0:02:08]} 32.
Kf1 {[%clk 0:03:24.7]} 32... Nxe1 {[%clk 0:02:06.6]} 33. Bxe1 {[%clk 0:03:24.4]}
33... Bxf3 {[%clk 0:02:05.5]} 34. gxf3 {[%clk 0:03:24.1]} 34... Rxf3+ {[%clk
0:02:04.2]} 35. Kg2 {[%clk 0:03:23.8]} 35... Rf4 {[%clk 0:02:02.8]} 36. Kg3
{[%clk 0:03:20.5]} 36... Re4 {[%clk 0:02:01.2]} 37. Bd2 {[%clk 0:03:19.8]} 37...
Ke5 {[%clk 0:01:57]} 38. Bc3+ {[%clk 0:03:16.5]} 38... d4 {[%clk 0:01:54]} 39.
Bd2 {[%clk 0:03:15.9]} 39... Kd5 {[%clk 0:01:51.1]} 40. Kf3 {[%clk 0:03:14.8]}
40... Rxh4 {[%clk 0:01:49.4]} 0-1

[Event "Live Chess"]
[Site "Chess.com"]
[Date "2024.06.02"]
[Round "-"]
[White "defenderalist"]
[Black "WilliamofOrange16th"]
[Result "1/2-1/2"]
[WhiteElo "1549"]
[BlackElo "1998"]
[TimeControl "300"]
[EndTime "5:36:05 PDT"]
[Termination "Game drawn - timeout vs insufficient material"]

1. e4 {[%clk 0:04:57]} 1... d6 {[%clk 0:04:59.2]} 2. d4 {[%clk 0:04:55.6]} 2...
Nf6 {[%clk 0:04:58.8]} 3. Nc3 {[%clk 0:04:54.6]} 3... Nbd7 {[%clk 0:04:58]} 4.
Bc4 {[%clk 0:04:48.1]} 4... e5 {[%clk 0:04:57.9]} 5. dxe5 {[%clk 0:04:44]} 5...
dxe5 {[%clk 0:04:57.8]} 6. Nf3 {[%clk 0:04:41.4]} 6... Be7 {[%clk 0:04:56.9]} 7.
O-O {[%clk 0:04:39.9]} 7... O-O {[%clk 0:04:55.7]} 8. Bg5 {[%clk 0:04:37.9]}
8... c6 {[%clk 0:04:55]} 9. a3 {[%clk 0:04:35.8]} 9... Qc7 {[%clk 0:04:54.2]}
10. h3 {[%clk 0:04:28.3]} 10... Nc5 {[%clk 0:04:53.4]} 11. Qe2 {[%clk
0:04:22.5]} 11... Ne6 {[%clk 0:04:51.4]} 12. Bh4 {[%clk 0:04:20.4]} 12... b5
{[%clk 0:04:49.2]} 13. Ba2 {[%clk 0:04:17.5]} 13... Nd4 {[%clk 0:04:30.4]} 14.
Nxd4 {[%clk 0:04:12.7]} 14... exd4 {[%clk 0:04:30.3]} 15. Nd1 {[%clk 0:04:08.8]}
15... c5 {[%clk 0:04:26]} 16. e5 {[%clk 0:03:57.4]} 16... Ne8 {[%clk 0:04:19.5]}
17. Bxe7 {[%clk 0:03:56]} 17... Qxe7 {[%clk 0:04:19.4]} 18. f4 {[%clk
0:03:55.4]} 18... a6 {[%clk 0:04:17.5]} 19. f5 {[%clk 0:03:45.9]} 19... Nc7
{[%clk 0:04:08.4]} 20. f6 {[%clk 0:03:36.2]} 20... Qd8 {[%clk 0:04:03]} 21. fxg7
{[%clk 0:03:31.4]} 21... Kxg7 {[%clk 0:04:02.4]} 22. Qh5 {[%clk 0:03:22.8]}
22... Be6 {[%clk 0:03:56.2]} 23. Bxe6 {[%clk 0:03:18]} 23... Nxe6 {[%clk
0:03:56.1]} 24. Nf2 {[%clk 0:03:07.7]} 24... Qg5 {[%clk 0:03:31.1]} 25. Qe2
{[%clk 0:02:46.9]} 25... Nf4 {[%clk 0:03:27.7]} 26. Qe4 {[%clk 0:02:39.6]} 26...
Rae8 {[%clk 0:03:21.3]} 27. Ng4 {[%clk 0:02:39]} 27... Nxh3+ {[%clk 0:03:07.9]}
28. gxh3 {[%clk 0:02:38.1]} 28... h5 {[%clk 0:03:06.9]} 29. Rf4 {[%clk
0:02:26.6]} 29... Kh8 {[%clk 0:02:46.6]} 30. Kh2 {[%clk 0:02:19.9]} 30... hxg4
{[%clk 0:02:42.3]} 31. Rxg4 {[%clk 0:02:18.8]} 31... Qxe5+ {[%clk 0:02:41.3]}
32. Qxe5+ {[%clk 0:02:10.4]} 32... Rxe5 {[%clk 0:02:41.2]} 33. Rag1 {[%clk
0:02:08.9]} 33... Rh5 {[%clk 0:02:31.2]} 34. Rg5 {[%clk 0:01:48.2]} 34... Rxg5
{[%clk 0:02:26]} 35. Rxg5 {[%clk 0:01:48.1]} 35... f5 {[%clk 0:02:19.6]} 36. h4
{[%clk 0:01:43.5]} 36... Kh7 {[%clk 0:02:18.5]} 37. Kh3 {[%clk 0:01:40.8]} 37...
Kh6 {[%clk 0:02:11.2]} 38. Kg3 {[%clk 0:01:33.7]} 38... f4+ {[%clk 0:02:03.5]}
39. Kf3 {[%clk 0:01:32.5]} 39... c4 {[%clk 0:02:00.6]} 40. Rd5 {[%clk
0:01:27.5]} 40... d3 {[%clk 0:01:16.6]} 41. cxd3 {[%clk 0:01:24.3]} 41... cxd3
{[%clk 0:01:14.3]} 42. Rxd3 {[%clk 0:01:23.2]} 42... Kh5 {[%clk 0:01:13.4]} 43.
Rd6 {[%clk 0:01:14.9]} 43... Kxh4 {[%clk 0:01:07.4]} 44. Rxa6 {[%clk 0:01:12.8]}
44... Kg5 {[%clk 0:01:05.7]} 45. Rb6 {[%clk 0:01:08.6]} 45... Rf5 {[%clk
0:01:03.7]} 46. Rb8 {[%clk 0:01:04.6]} 46... Rd5 {[%clk 0:00:56]} 47. Rg8+
{[%clk 0:00:47.9]} 47... Kf5 {[%clk 0:00:53.5]} 48. Rf8+ {[%clk 0:00:44.3]}
48... Ke5 {[%clk 0:00:51.5]} 49. Rxf4 {[%clk 0:00:32.9]} 49... Rd2 {[%clk
0:00:50.5]} 50. Rb4 {[%clk 0:00:29.4]} 50... Rd5 {[%clk 0:00:49.7]} 51. Ke3
{[%clk 0:00:27.8]} 51... Kd6 {[%clk 0:00:46.2]} 52. Rd4 {[%clk 0:00:26.3]} 52...
Kc5 {[%clk 0:00:43.2]} 53. Rxd5+ {[%clk 0:00:26]} 53... Kxd5 {[%clk 0:00:42.7]}
54. Kd3 {[%clk 0:00:25.2]} 54... Kc5 {[%clk 0:00:39.5]} 55. b4+ {[%clk
0:00:24.7]} 55... Kd5 {[%clk 0:00:37.6]} 56. Kc3 {[%clk 0:00:24]} 56... Ke4
{[%clk 0:00:34.3]} 57. Kc2 {[%clk 0:00:21.6]} 57... Kd4 {[%clk 0:00:32.3]} 58.
Kb3 {[%clk 0:00:20.9]} 58... Kd3 {[%clk 0:00:31.3]} 59. a4 {[%clk 0:00:20]}
59... Kd4 {[%clk 0:00:26.5]} 60. a5 {[%clk 0:00:18.6]} 60... Kd5 {[%clk
0:00:25.6]} 61. Kc3 {[%clk 0:00:17.8]} 61... Ke5 {[%clk 0:00:21.5]} 62. Kd3
{[%clk 0:00:16.6]} 62... Kd5 {[%clk 0:00:20.8]} 63. a6 {[%clk 0:00:15.9]} 63...
Kc6 {[%clk 0:00:20]} 64. Kd4 {[%clk 0:00:14.8]} 64... Kb6 {[%clk 0:00:19.5]} 65.
a7 {[%clk 0:00:14]} 65... Kxa7 {[%clk 0:00:18.8]} 66. Kc5 {[%clk 0:00:13.1]}
66... Ka6 {[%clk 0:00:16]} 67. Kc6 {[%clk 0:00:12.5]} 67... Ka7 {[%clk
0:00:15.5]} 68. Kxb5 {[%clk 0:00:12.1]} 68... Kb7 {[%clk 0:00:15.2]} 69. Kc5
{[%clk 0:00:09.9]} 69... Kc7 {[%clk 0:00:14.6]} 70. Kb5 {[%clk 0:00:09.2]} 70...
Kb7 {[%clk 0:00:14.1]} 71. Kc5 {[%clk 0:00:07.2]} 71... Kc7 {[%clk 0:00:13.4]}
72. Kd5 {[%clk 0:00:05.6]} 72... Kb6 {[%clk 0:00:12.4]} 73. Kc4 {[%clk
0:00:03.4]} 73... Kc6 {[%clk 0:00:11.9]} 74. Kd4 {[%clk 0:00:01.5]} 74... Kb5
{[%clk 0:00:10.8]} 75. Kc3 {[%clk 0:00:01.1]} 75... Kb6 {[%clk 0:00:10]} 76. Kc4
{[%clk 0:00:00.4]} 76... Kc6 {[%clk 0:00:09.6]} 1/2-1/2

[Event "Live Chess"]
[Site "Chess.com"]
[Date "2024.06.02"]
[Round "-"]
[White "StoreySniper"]
[Black "TheSmoulderingMaster"]
[Result "1-0"]
[WhiteElo "2497"]
[BlackElo "1777"]
[TimeControl "300"]
[EndTime "5:36:09 PDT"]
[Termination "StoreySniper won by resignation"]

1. e4 {[%clk 0:04:58.1]} 1... c5 {[%clk 0:04:58.8]} 2. Nf3 {[%clk 0:04:57]} 2...
d6 {[%clk 0:04:58.1]} 3. d4 {[%clk 0:04:55.9]} 3... cxd4 {[%clk 0:04:57.5]} 4.
c3 {[%clk 0:04:55.1]} 4... dxc3 {[%clk 0:04:55.7]} 5. Nxc3 {[%clk 0:04:53.9]}
5... Nc6 {[%clk 0:04:54.7]} 6. Bc4 {[%clk 0:04:52.9]} 6... e6 {[%clk 0:04:53.1]}
7. O-O {[%clk 0:04:52]} 7... Nf6 {[%clk 0:04:52.2]} 8. Qe2 {[%clk 0:04:51.3]}
8... Be7 {[%clk 0:04:51.1]} 9. Rd1 {[%clk 0:04:50.4]} 9... O-O {[%clk
0:04:48.3]} 10. Bf4 {[%clk 0:04:47.9]} 10... e5 {[%clk 0:04:46.5]} 11. Bg5
{[%clk 0:04:45.6]} 11... Bg4 {[%clk 0:04:45.4]} 12. Bxf6 {[%clk 0:04:44.2]}
12... Bxf6 {[%clk 0:04:44.3]} 13. Nb5 {[%clk 0:04:34.8]} 13... Be7 {[%clk
0:04:37.9]} 14. h3 {[%clk 0:04:20]} 14... Bh5 {[%clk 0:04:34.1]} 15. g4 {[%clk
0:04:18.8]} 15... Bg6 {[%clk 0:04:33.3]} 16. Rd2 {[%clk 0:04:04.7]} 16... a6
{[%clk 0:04:31.5]} 17. Nxd6 {[%clk 0:04:01.3]} 17... Bxd6 {[%clk 0:04:29.6]} 18.
Rad1 {[%clk 0:03:59.9]} 18... Nd4 {[%clk 0:04:21.3]} 19. Nxd4 {[%clk 0:03:58.4]}
19... exd4 {[%clk 0:04:20.3]} 20. Rxd4 {[%clk 0:03:57.7]} 20... Qh4 {[%clk
0:04:14]} 21. Rxd6 {[%clk 0:03:52]} 21... Qxh3 {[%clk 0:04:13]} 22. R1d3 {[%clk
0:03:32.3]} 22... Qh4 {[%clk 0:04:04.2]} 23. f4 {[%clk 0:03:29]} 23... Rac8
{[%clk 0:03:41]} 24. Rc3 {[%clk 0:03:11.3]} 24... b5 {[%clk 0:03:23.9]} 25. f5
{[%clk 0:02:33.3]} 25... Rxc4 {[%clk 0:03:16.8]} 26. Rxc4 {[%clk 0:02:26.1]}
26... bxc4 {[%clk 0:03:11.9]} 27. Kg2 {[%clk 0:02:23.2]} 27... Bh5 {[%clk
0:02:47]} 28. gxh5 {[%clk 0:02:17.1]} 28... Qg5+ {[%clk 0:02:42.5]} 29. Kh3
{[%clk 0:02:14.5]} 29... Qf4 {[%clk 0:02:30]} 30. Rd4 {[%clk 0:02:05.5]} 30...
h6 {[%clk 0:02:22.2]} 31. Rxc4 {[%clk 0:02:00.8]} 31... Re8 {[%clk 0:02:19.5]}
32. b3 {[%clk 0:01:55]} 32... Rd8 {[%clk 0:02:12.3]} 33. Rc3 {[%clk 0:01:44.2]}
33... Rd2 {[%clk 0:02:07.7]} 34. Rf3 {[%clk 0:01:35.1]} 34... Qd6 {[%clk
0:01:56]} 35. e5 {[%clk 0:01:31.5]} 35... Qd5 {[%clk 0:01:49.2]} 36. Qe3 {[%clk
0:01:23.8]} 36... Rd1 {[%clk 0:01:42.6]} 37. e6 {[%clk 0:01:14]} 37... Rh1+
{[%clk 0:01:22]} 38. Kg2 {[%clk 0:01:12.3]} 38... Qd1 {[%clk 0:01:13.1]} 39. e7
{[%clk 0:00:50.7]} 39... Rxh5 {[%clk 0:01:05.1]} 40. e8=Q+ {[%clk 0:00:48.5]}
40... Kh7 {[%clk 0:01:03.8]} 41. Rf1 {[%clk 0:00:33.1]} 41... Qc2+ {[%clk
0:00:58.7]} 42. Rf2 {[%clk 0:00:31.5]} 42... Qd1 {[%clk 0:00:50.8]} 43. Rf1
{[%clk 0:00:25.2]} 43... Qg4+ {[%clk 0:00:48.3]} 44. Qg3 {[%clk 0:00:23.7]}
44... Qd4 {[%clk 0:00:39.4]} 45. Qe2 {[%clk 0:00:21.6]} 45... Rg5 {[%clk
0:00:35.9]} 46. Rf3 {[%clk 0:00:20.7]} 46... Rxg3+ {[%clk 0:00:33]} 47. Rxg3
{[%clk 0:00:20.1]} 47... Qd5+ {[%clk 0:00:30.4]} 48. Qf3 {[%clk 0:00:19.5]}
48... Qd2+ {[%clk 0:00:28.5]} 49. Kh3 {[%clk 0:00:19]} 49... Qd7 {[%clk
0:00:25.6]} 50. Qg4 {[%clk 0:00:18]} 50... f6 {[%clk 0:00:22.6]} 51. Qg6+ {[%clk
0:00:16.8]} 51... Kh8 {[%clk 0:00:21.3]} 52. Re3 {[%clk 0:00:16.3]} 1-0

[Event "Live Chess"]
[Site "Chess.com"]
[Date "2024.06.02"]
[Round "-"]
[White "Grace6363"]
[Black "booktrunk"]
[Result "0-1"]
[WhiteElo "1139"]
[BlackElo "1498"]
[TimeControl "300"]
[EndTime "5:36:43 PDT"]
[Termination "booktrunk won on time"]

1. d4 {[%clk 0:04:52.2]} 1... b6 {[%clk 0:04:59.4]} 2. Nf3 {[%clk 0:04:50.3]}
2... Bb7 {[%clk 0:04:59.3]} 3. c4 {[%clk 0:04:48.2]} 3... e6 {[%clk 0:04:52.8]}
4. e3 {[%clk 0:04:47.3]} 4... Nf6 {[%clk 0:04:50.5]} 5. Nc3 {[%clk 0:04:46.4]}
5... Bb4 {[%clk 0:04:46.2]} 6. Be2 {[%clk 0:04:45.2]} 6... a5 {[%clk 0:04:39.1]}
7. a3 {[%clk 0:04:43.4]} 7... Bxc3+ {[%clk 0:04:38]} 8. bxc3 {[%clk 0:04:42.8]}
8... O-O {[%clk 0:04:36.7]} 9. Qc2 {[%clk 0:04:40.4]} 9... Be4 {[%clk
0:04:31.6]} 10. Bd3 {[%clk 0:04:38.2]} 10... Bxd3 {[%clk 0:04:29.6]} 11. Qxd3
{[%clk 0:04:37.6]} 11... c6 {[%clk 0:04:27.8]} 12. Bb2 {[%clk 0:04:35]} 12...
Re8 {[%clk 0:04:18.8]} 13. O-O {[%clk 0:04:33.8]} 13... Qe7 {[%clk 0:04:17.4]}
14. Rfe1 {[%clk 0:04:24.4]} 14... d6 {[%clk 0:04:16.2]} 15. e4 {[%clk
0:04:22.8]} 15... Nbd7 {[%clk 0:04:14]} 16. Bc1 {[%clk 0:04:14.9]} 16... e5
{[%clk 0:04:10.3]} 17. Bg5 {[%clk 0:04:10.4]} 17... exd4 {[%clk 0:04:06.5]} 18.
cxd4 {[%clk 0:04:04.9]} 18... h6 {[%clk 0:04:00.9]} 19. Bh4 {[%clk 0:04:01]}
19... g5 {[%clk 0:03:58.7]} 20. Bg3 {[%clk 0:04:00]} 20... Qf8 {[%clk
0:03:50.4]} 21. Nd2 {[%clk 0:03:49.4]} 21... Nh5 {[%clk 0:03:32.5]} 22. Rab1
{[%clk 0:03:16]} 22... Nxg3 {[%clk 0:03:28.1]} 23. fxg3 {[%clk 0:03:14.6]} 23...
Rab8 {[%clk 0:03:23.3]} 24. Nf3 {[%clk 0:03:09.5]} 24... Nf6 {[%clk 0:03:18.2]}
25. h3 {[%clk 0:03:04.5]} 25... c5 {[%clk 0:03:07]} 26. d5 {[%clk 0:02:56.9]}
26... Nh5 {[%clk 0:03:05.3]} 27. Kh2 {[%clk 0:02:54.4]} 27... Qg7 {[%clk
0:03:00.8]} 28. Nd2 {[%clk 0:02:28.1]} 28... Re5 {[%clk 0:02:50.3]} 29. Re2
{[%clk 0:02:21.6]} 29... g4 {[%clk 0:02:46.3]} 30. h4 {[%clk 0:02:13.7]} 30...
Qf6 {[%clk 0:02:38.2]} 31. Rf1 {[%clk 0:02:11]} 31... Qe7 {[%clk 0:02:32.2]} 32.
Ref2 {[%clk 0:02:09.1]} 32... Rf8 {[%clk 0:02:28.6]} 33. Rf5 {[%clk 0:02:04.8]}
33... Rxf5 {[%clk 0:02:26.6]} 34. Rxf5 {[%clk 0:02:03.7]} 34... Ng7 {[%clk
0:02:23.5]} 35. Rf4 {[%clk 0:01:54.8]} 35... h5 {[%clk 0:02:21.7]} 36. Qc3
{[%clk 0:01:43.4]} 36... f6 {[%clk 0:01:58.5]} 37. Qb3 {[%clk 0:01:30.8]} 37...
Rb8 {[%clk 0:01:54.5]} 38. Qc3 {[%clk 0:01:27.7]} 38... Kf7 {[%clk 0:01:43.5]}
39. Qb2 {[%clk 0:01:18.7]} 39... Rb7 {[%clk 0:01:25.4]} 40. Qc3 {[%clk
0:01:07.9]} 40... Qe5 {[%clk 0:01:20.9]} 41. Qxe5 {[%clk 0:00:49.5]} 41... dxe5
{[%clk 0:01:20.8]} 42. Rf2 {[%clk 0:00:46.1]} 42... Ne8 {[%clk 0:01:16.8]} 43.
Nb1 {[%clk 0:00:39.7]} 43... Nd6 {[%clk 0:01:13.7]} 44. Nd2 {[%clk 0:00:37.2]}
44... b5 {[%clk 0:01:10.9]} 45. cxb5 {[%clk 0:00:19.2]} 45... Rxb5 {[%clk
0:01:07.6]} 46. Re2 {[%clk 0:00:16.6]} 46... Rb2 {[%clk 0:01:05.3]} 47. Kg1
{[%clk 0:00:12.1]} 47... c4 {[%clk 0:01:00.9]} 48. Kf1 {[%clk 0:00:11.6]} 48...
c3 {[%clk 0:00:59.9]} 49. Nc4 {[%clk 0:00:10.3]} 49... Rb1+ {[%clk 0:00:53]} 50.
Kf2 {[%clk 0:00:07.5]} 50... Nxe4+ {[%clk 0:00:40.2]} 51. Rxe4 {[%clk 0:00:06]}
51... c2 {[%clk 0:00:39.1]} 52. d6 {[%clk 0:00:05.1]} 52... c1=Q {[%clk
0:00:37.1]} 53. d7 {[%clk 0:00:02.4]} 53... Qf1+ {[%clk 0:00:33.3]} 54. Ke3
{[%clk 0:00:01.1]} 54... Re1+ {[%clk 0:00:30.8]} 55. Kd2 {[%clk 0:00:00.3]}
55... Rd1+ {[%clk 0:00:28.9]} 0-1

[Event "Live Chess"]
[Site "Chess.com"]
[Date "2024.06.02"]
[Round "-"]
[White "MagnersCarlsberg2870"]
[Black "missedJariChance"]
[Result "0-1"]
[WhiteElo "1761"]
[BlackElo "1375"]
[TimeControl "300"]
[EndTime "5:36:58 PDT"]
[Termination "missedJariChance won by resignation"]

1. d4 {[%clk 0:04:57.8]} 1... d5 {[%clk 0:04:55.8]} 2. e3 {[%clk 0:04:56.4]}
2... e6 {[%clk 0:04:52.4]} 3. Bd3 {[%clk 0:04:55]} 3... c5 {[%clk 0:04:50.7]} 4.
c3 {[%clk 0:04:53.9]} 4... Nc6 {[%clk 0:04:43.6]} 5. f4 {[%clk 0:04:52]} 5...
Be7 {[%clk 0:04:40.6]} 6. Nf3 {[%clk 0:04:50.4]} 6... Nf6 {[%clk 0:04:38.7]} 7.
Nbd2 {[%clk 0:04:49.4]} 7... O-O {[%clk 0:04:37.4]} 8. O-O {[%clk 0:04:48.1]}
8... cxd4 {[%clk 0:04:22.2]} 9. Rf2 {[%clk 0:04:47.1]} 9... dxe3 {[%clk
0:04:17.7]} 10. Re2 {[%clk 0:04:45.5]} 10... exd2 {[%clk 0:04:11]} 11. Bxd2
{[%clk 0:04:44.6]} 11... Bd6 {[%clk 0:03:56.7]} 12. Ne5 {[%clk 0:04:42.3]} 12...
Qe7 {[%clk 0:03:28.1]} 13. g4 {[%clk 0:04:38.4]} 13... Bc5+ {[%clk 0:03:23]} 14.
Kh1 {[%clk 0:04:36.6]} 14... Nxe5 {[%clk 0:03:18.9]} 15. fxe5 {[%clk 0:04:33.1]}
15... Nxg4 {[%clk 0:03:14.4]} 16. Rg2 {[%clk 0:04:27.4]} 16... Nxe5 {[%clk
0:03:01.3]} 17. Bxh7+ {[%clk 0:04:13.3]} 17... Kxh7 {[%clk 0:02:39.2]} 18. Qh5+
{[%clk 0:04:11.5]} 18... Kg8 {[%clk 0:02:36.4]} 19. Qxe5 {[%clk 0:04:10]} 19...
f6 {[%clk 0:02:24.2]} 20. Qh5 {[%clk 0:04:08.3]} 20... Qf7 {[%clk 0:02:13.7]}
21. Rg6 {[%clk 0:04:03.3]} 21... e5 {[%clk 0:02:03.2]} 22. Bh6 {[%clk 0:04:00]}
22... Be6 {[%clk 0:01:37.5]} 23. Bxg7 {[%clk 0:03:56.5]} 23... Qxg7 {[%clk
0:01:34.8]} 24. Rxg7+ {[%clk 0:03:55.2]} 24... Kxg7 {[%clk 0:01:33.7]} 25. Rf1
{[%clk 0:03:48.5]} 25... Rh8 {[%clk 0:01:20.1]} 26. Qf3 {[%clk 0:03:42.9]} 26...
Raf8 {[%clk 0:01:07.7]} 27. c4 {[%clk 0:03:35.2]} 27... e4 {[%clk 0:00:55.6]}
28. Qg3+ {[%clk 0:03:33.9]} 28... Kf7 {[%clk 0:00:53.4]} 29. Qc7+ {[%clk
0:03:32.3]} 29... Be7 {[%clk 0:00:48.1]} 30. Qxb7 {[%clk 0:03:07.9]} 30... dxc4
{[%clk 0:00:35.4]} 31. Qxe4 {[%clk 0:03:02.8]} 31... Rd8 {[%clk 0:00:31.5]} 32.
Re1 {[%clk 0:03:01]} 32... Bd5 {[%clk 0:00:27.5]} 33. Qxd5+ {[%clk 0:02:53.8]}
33... Rxd5 {[%clk 0:00:26]} 34. a3 {[%clk 0:02:50.4]} 34... Rd2 {[%clk
0:00:22.3]} 0-1

[Event "Live Chess"]
[Site "Chess.com"]
[Date "2024.06.02"]
[Round "-"]
[White "Bradfield133"]
[Black "Duke_of_Bebington"]
[Result "1-0"]
[WhiteElo "1840"]
[BlackElo "1612"]
[TimeControl "300"]
[EndTime "5:37:02 PDT"]
[Termination "Bradfield133 won by resignation"]

1. c4 {[%clk 0:04:58.1]} 1... c6 {[%clk 0:04:58.6]} 2. Qa4 {[%clk 0:04:55.5]}
2... Nf6 {[%clk 0:04:44.5]} 3. g3 {[%clk 0:04:54.1]} 3... e6 {[%clk 0:04:41]} 4.
Bg2 {[%clk 0:04:52.8]} 4... d5 {[%clk 0:04:34.5]} 5. d3 {[%clk 0:04:50.8]} 5...
Nbd7 {[%clk 0:04:32]} 6. Nf3 {[%clk 0:04:46.8]} 6... Nb6 {[%clk 0:04:28.8]} 7.
Qc2 {[%clk 0:04:45.1]} 7... Be7 {[%clk 0:04:23.9]} 8. O-O {[%clk 0:04:42]} 8...
O-O {[%clk 0:04:22.6]} 9. Nbd2 {[%clk 0:04:34.8]} 9... Qc7 {[%clk 0:04:20.1]}
10. b3 {[%clk 0:04:24.5]} 10... a5 {[%clk 0:04:12.3]} 11. Bb2 {[%clk 0:04:20.5]}
11... a4 {[%clk 0:04:07.7]} 12. Be5 {[%clk 0:04:08.3]} 12... Bd6 {[%clk
0:04:04.3]} 13. Bxd6 {[%clk 0:04:03.9]} 13... Qxd6 {[%clk 0:04:02]} 14. c5
{[%clk 0:04:02.8]} 14... Qc7 {[%clk 0:04:00.1]} 15. cxb6 {[%clk 0:04:01.2]}
15... Qxb6 {[%clk 0:04:00]} 16. bxa4 {[%clk 0:03:53.6]} 1-0